Workbook

Sheet ReadMe
A1: 2自由度系の地震応答解析 | E1: ver.2.5 | F1: 2020-08-16 | G1: 伊津野和行
G2: 立命館大学理工学部環境都市工学科
A3: 概要 | G3: izuno@se.ritsumei.ac.jp
A4: 【応答計算】 | B4: 非線形2自由度系の地震応答を計算します．
B5: 橋梁をイメージしており，B52セルで1層目（橋脚）は，線形，バイリニア，剛性劣化Clough型を，
B6: 2層目（支承）はB53セルで，線形，バイリニア，ハードニングを考慮したバイリニア型を設定することができます．
B7: B2～B14セルの値を入力してください．ゴム支承のハードニングを考慮する場合は，B15とC15セルも入力してください．
B8: 減衰は，部材の減衰定数からひずみエネルギー比例減衰を計算しています．
B9: 初期剛性を用いた固有周期が，B25とB26セルで計算されます．
B10: F列に地震加速度波形（単位：cm/s/s＝gal）を貼り付け，計算実行ボタンを押せば計算が実行されます．
B11: 最大応答はB54～B62セルに出力されます．
B12: 数値積分には，安定した陽解法である有理ルンゲ・クッタ法を用いています．
B13: A. Wambecq: Rational Runge-Kutta methods for solving systems of ordinary differential equations, Computing, Vol. 20, Issue 4, pp 333-342, 1978.
A15: 【固有値解析】 | B15: 応答計算シートに入力された値を元に，固有値や固有振動モードを計算します．
B16: 入力は，応答計算シートにしてください．
A18: 【改版履歴】
A19: 2018-10-03 | B19: ver. 1.0 | C19: 初版
A20: 2019-01-20 | B20: ver. 2.0 | C20: 解法を有理ルンゲ・クッタ法に変更
A21: 2019-01-23 | B21: ver. 2.1 | C21: bug fix
A22: 2019-04-02 | B22: ver. 2.2 | C22: 計算進捗状況を表示するのに時間がかかっていたので方法を変更し計算速度向上
A23: 2019-07-05 | B23: ver. 2.3 | C23: 地震波の最初が0だとエラーになるのを回避
A24: 2019-10-11 | B24: ver. 2.4 | C24: 減衰行列の計算が間違っていたのを修正
A25: 2020-08-16 | B25: ver. 2.5 | C25: 加速度の計算方法を修正

Sheet 応答計算
A1: 入力データ | E1: 時間 (s) | F1: 地震加速度 z(t) (cm/s/s) | G1: Acc. of 1st story (m/s/s) | H1: Acc. of 2nd story (m/s/s) | I1: Vel. of 1st story (m/s) | J1: Vel. of 2nd story (m/s) | K1: Dis. of 1st story (m) | L1: Dis. of 2nd story (m) | M1: Drift of 2nd story (m) | N1: Restoring force of 1st story (kN) | O1: Restoring force of 2nd story (kN)
A2: データ数 | B2: 3000 | E2: =$B$3 -> 0.01 | F2: 0 | G2: 0 | H2: 0 | I2: 0 | J2: 0 | K2: 0 | L2: 0 | M2: 0 | N2: 0 | O2: 0
A3: 時間刻み | B3: 0.01 | C3: s | E3: =E2+$B$3 -> 0.02 | F3: 0.793 | G3: 0.3001714613 | H3: 0.0001237715677 | I3: 0.002289116094 | J3: -0.0008358223594 | K3: -0.001339887899 | L3: -0.001355235662 | M3: -1.237390676e-05 | N3: -603.4643446 | O3: -0.2757261756
A4: 橋脚の質量：m1 | B4: 2000 | C4: t | E4: =E3+$B$3 -> 0.03 | F4: 0.793 | G4: 0.2898850192 | H4: 0.0003003727203 | I4: 0.005161377418 | J4: -0.0009130078229 | K4: -0.001302550427 | L4: -0.001363981187 | M4: -5.550158464e-05 | N4: -587.3088419 | O4: -1.167878807
A5: 桁の質量：m2 | B5: 6000 | C5: t | E5: 0.04 | F5: 0.794 | G5: 0.2730614477 | H5: 0.0005720998763 | I5: 0.007894440555 | J5: -0.0009879541558 | K5: -0.001237134552 | L5: -0.001373487936 | M5: -0.0001276078992 | N5: -558.4865324 | O5: -2.638256179
A6: 橋脚の減衰定数：h1 | B6: 0.02 | E6: 0.05 | F6: 0.794 | G6: 0.2501347002 | H6: 0.0009327026286 | I6: 0.01042520048 | J6: -0.001059732562 | K6: -0.0011453522 | L6: -0.001383728939 | M6: -0.0002270174053 | N6: -517.753754 | O6: -4.652704599
A7: 支承の減衰定数：h2 | B7: 0.02 | E7: 0.06 | F7: 0.794 | G7: 0.2216787443 | H7: 0.00137391389 | I7: 0.01269571015 | J7: -0.00112745277 | K7: -0.001029522056 | L7: -0.001394667806 | M7: -0.0003514342439 | N7: -466.1408412 | O7: -7.164712689
A8: 橋脚の初期剛性：k1 | B8: 450000 | C8: kN/m | E8: 0.07 | F8: 0.794 | G8: 0.188393616 | H8: 0.001885655926 | I8: 0.01465442873 | J8: -0.001190362258 | K8: -0.0008925125173 | L8: -0.001406259918 | M8: -0.0004979982196 | N8: -404.9269038 | O8: -10.1165465
A9: 支承の初期剛性：k2 | B9: 20000 | C9: kN/m | E9: 0.08 | F9: 0.795 | G9: 0.1510886839 | H9: 0.002456282428 | I9: 0.01625738665 | J9: -0.001247872551 | K9: -0.0007376731659 | L9: -0.001418453634 | M9: -0.0006633535325 | N9: -335.6091712 | O9: -13.44063623
A10: 橋脚の降伏後剛性：ky1 | B10: 100000 | C10: kN/m | E10: 0.09 | F10: 0.795 | G10: 0.1106641244 | H10: 0.003072836388 | I10: 0.01746930791 | J10: -0.001299453559 | K10: -0.0005687590201 | L10: -0.001431191343 | M10: -0.0008437252731 | N10: -259.8688552 | O10: -17.06111646
A11: 支承の降伏後剛性：ky2 | B11: 1000 | C11: kN/m | E11: 0.1 | F11: 0.796 | G11: 0.06809433563 | H11: 0.003721286963 | I11: 0.01826437177 | J11: -0.001344724206 | K11: -0.0003898659627 | L11: -0.001444407854 | M11: -0.001034986321 | N11: -179.5402614 | O11: -20.89517283
A12: 橋脚の降伏強度：y1 | B12: 12000 | C12: kN | E12: 0.11 | F12: 0.796 | G12: 0.02445017726 | H12: 0.004386167591 | I12: 0.01862714048 | J12: -0.00138338275 | K12: -0.0002055864515 | L12: -0.001458013167 | M12: -0.00123254769 | N12: -96.65421897 | O12: -24.85085726
A13: 支承の降伏強度：y2 | B13: 200 | C13: kN | E13: 0.12 | F13: 0.797 | G13: -0.01898716699 | H13: 0.00504882152 | I13: 0.01855251609 | J13: -0.001415195349 | K13: -2.117119127e-05 | L13: -0.001471873401 | M13: -0.001430832458 | N13: -13.65523242 | O13: -28.81656816
A14: 時間刻みの分割数 | B14: 10 | E14: 0.13 | F14: 0.797 | G14: -0.06184814745 | H14: 0.005704495654 | I14: 0.0180451857 | J14: -0.00144070068 | K14: 0.0001617614936 | L14: -0.001486128524 | M14: -0.001628390034 | N14: 68.74079651 | O14: -32.76333596
A15: ハードニング開始点(m)とk2に対する倍率 | B15: 100 | C15: 1.5 | E15: 0.14 | F15: 0.798 | G15: -0.1029030013 | H15: 0.006335291207 | I15: 0.01711845449 | J15: -0.001459886281 | K15: 0.0003378102405 | L15: -0.001500629208 | M15: -0.001819813754 | N15: 148.1660386 | O15: -36.58315159
A16: 【出力】質量マトリックス | B16: =B4 -> 2000 | C16: 0 | E16: 0.15 | F16: 0.798 | G16: -0.1411309987 | H16: 0.006926457534 | I16: 0.01579596615 | J16: -0.001473027108 | K16: 0.0005026495813 | L16: -0.001515295686 | M16: -0.002000605837 | N16: 222.6397596 | O16: -40.18628795
B17: 0 | C17: =B5 -> 6000 | E17: 0.16 | F17: 0.799 | G17: -0.1756445933 | H17: 0.007465211149 | I17: 0.01411087064 | J17: -0.001480593536 | K17: 0.0006524415728 | L17: -0.001530066703 | M17: -0.002166827303 | N17: 290.4246526 | O17: -43.49429252
A18: 剛性マトリックス | B18: =B8+B9 -> 470000 | C18: =-B9 -> -20000 | E18: 0.17 | F18: 0.8 | G18: -0.2056559436 | H18: 0.007940212501 | I18: 0.01210466347 | J18: -0.001483215612 | K18: 0.0007837497148 | L18: -0.001544888825 | M18: -0.002314945108 | N18: 349.964376 | O18: -46.43691767
B19: =-B9 -> -20000 | C19: =B9 -> 20000 | E19: 0.18 | F19: 0.801 | G19: -0.2304891165 | H19: 0.008341729702 | I19: 0.009826177582 | J19: -0.001481584899 | K19: 0.0008935970356 | L19: -0.001559715655 | M19: -0.002441886283 | N19: 399.9081292 | O19: -48.9531924
A20: a | B20: =B4*B5 -> 12000000 | E20: 0.19 | F20: 0.802 | G20: -0.2495940469 | H20: 0.008661840982 | I20: 0.007330332354 | J20: -0.001476481028 | K20: 0.0009795287727 | L20: -0.001574508337 | M20: -0.002545101627 | N20: 439.1388428 | O20: -50.99268406
A21: b | B21: =B18*B5+C19*B4 -> 2860000000 | E21: 0.2 | F21: 0.803 | G21: -0.2625582885 | H21: 0.008894603364 | I21: 0.004676804081 | J21: -0.001468752329 | K21: 0.001039665305 | L21: -0.001589236245 | M21: -0.002622620498 | N21: 466.7972282 | O21: -52.51658091
A22: c | B22: =B18*C19-C18*C18 -> 9000000000 | E22: 0.21 | F22: 0.805 | G22: -0.2691156245 | H22: 0.009036180888 | I22: 0.001928542528 | J22: -0.001459350208 | K22: 0.001072741941 | L22: -0.00160387771 | M22: -0.002673092732 | N22: 482.2999929 | O22: -53.49851595
A23: 1次モード固有円振動数 | B23: =SQRT((B21-SQRT(B21*B21-4*B20*B22))/2/B20) -> 1.785927685 | C23: rad/s | E23: 0.22 | F23: 0.807 | G23: -0.2691512794 | H23: 0.009084916452 | I23: -0.0008496588177 | J23: -0.001449242463 | K23: 0.0010781341 | L23: -0.001618420869 | M23: -0.002695816154 | N23: 485.351486 | O23: -53.92510214
A24: 2次モード固有円振動数 | B24: =SQRT((B21+SQRT(B21*B21-4*B20*B22))/2/B20) -> 15.3343991 | C24: rad/s | E24: 0.23 | F24: 0.809 | G24: -0.2627037879 | H24: 0.009041354463 | I24: -0.003592656522 | J24: -0.00143935643 | K24: 0.001055868443 | L24: -0.001632863267 | M24: -0.002690748861 | N24: 475.9490391 | O24: -53.79616252
A25: 1次固有周期：T1 | B25: =2*PI()/B23 -> 3.518163339 | C25: s | E25: 0.24 | F25: 0.811 | G25: -0.2499631626 | H25: 0.0089082172 | I25: -0.006236529027 | J25: -0.00143060197 | K25: 0.001006618409 | L25: -0.001647211649 | M25: -0.002658506089 | N25: 454.3813074 | O25: -53.12465204
A26: 2次固有周期：T2 | B26: =2*PI()/B24 -> 0.409744475 | C26: s | E26: 0.25 | F26: 0.814 | G26: -0.2312654611 | H26: 0.008690331164 | I26: -0.008720120355 | J26: -0.001423904958 | K26: 0.0009316843531 | L26: -0.001661481855 | M26: -0.002600341754 | N26: 421.2196777 | O26: -51.93627327
A27: 1次モードのモード形：支承／橋脚 | B27: =(B18-B4*B23^2)/(-C18) -> 23.18104623 | E27: 0.26 | F27: 0.818 | G27: -0.2070839168 | H27: 0.008394500955 | I27: -0.01098644551 | J27: -0.001420176924 | K27: 0.0008329587831 | L27: -0.001675698986 | M27: -0.002518115281 | N27: 377.302934 | O27: -50.26879847
A28: 2次モードのモード形：支承／橋脚 | B28: =(B18-B4*B24^2)/(-C18) -> -0.0143795638 | E28: 0.27 | F28: 0.821 | G28: -0.1780172305 | H28: 0.008029329063 | I28: -0.0129838467 | J28: -0.001420141387 | K28: 0.0007128790578 | L28: -0.001689896447 | M28: -0.002414244652 | N28: 323.7162181 | O28: -48.17111715
A29: モーダルマトリックス：fai | B29: 1 | C29: 1 | E29: 0.28 | F29: 0.826 | G29: -0.1447750376 | H29: 0.00760501714 | I29: -0.01466735764 | J29: -0.001424500844 | K29: 0.0005743685543 | L29: -0.001704114209 | M29: -0.00229164698 | N29: 261.7648294 | O29: -45.70203549
B30: =(B8+B9-B4*B23*B23)/B9 -> 23.18104623 | C30: =(B8+B9-B4*B24*B24)/B9 -> -0.0143795638 | E30: 0.29 | F30: 0.83 | G30: -0.1081609883 | H30: 0.007133118331 | I30: -0.01599962327 | J30: -0.001433818195 | K30: 0.0004207669528 | L30: -0.001718398728 | M30: -0.002153669445 | N30: 192.9429107 | O30: -42.92888444
A31: 転置モーダルマトリックス：fai^T | B31: =B29 -> 1 | C31: =B30 -> 23.18104623 | E31: 0.3 | F31: 0.835 | G31: -0.06905563669 | H31: 0.006626284493 | I31: -0.01695176515 | J31: -0.00144850568 | K31: 0.0002557608227 | L31: -0.001732799644 | M31: -0.002004016162 | N31: 118.9017595 | O31: -39.92604818
B32: =C29 -> 1 | C32: =C30 -> -0.0143795638 | E32: 0.31 | F32: 0.839 | G32: -0.02840765971 | H32: 0.006098124107 | I32: -0.01750415137 | J32: -0.001468810616 | K32: 8.336122647e-05 | L32: -0.001747363271 | M32: -0.001846708052 | N32: 41.43402088 | O32: -36.77415372
A33: モーダルマトリックスの逆行列：fai^(-1) | B33: =MINVERSE(B29:C30) -> 0.0006199310128 | C33: 0.0431119484 | E33: 0.32 | F33: 0.844 | G33: 0.01264198602 | H33: 0.00556477889 | I33: -0.01764725943 | J33: -0.001494722703 | K33: -9.145041338e-05 | L33: -0.001762067065 | M33: -0.001686560333 | N33: -37.2864766 | O33: -33.56961085
B34: 0.999380069 | C34: -0.0431119484 | E34: 0.33 | F34: 0.848 | G34: 0.05329801609 | H34: 0.005037925362 | I34: -0.01738054827 | J34: -0.001526444145 | K34: -0.0002658530382 | L34: -0.001777078044 | M34: -0.001527069544 | N34: -115.7397837 | O34: -30.38236631
A35: 転置モーダルマトリックスの逆行列：fai^(-T) | B35: =MINVERSE(B31:C32) -> 0.0006199310128 | C35: 0.999380069 | E35: 0.34 | F35: 0.852 | G35: 0.09289877935 | H35: 0.004527467923 | I35: -0.01671257615 | J35: -0.001563898391 | K35: -0.0004364615483 | L35: -0.001792510602 | M35: -0.001371232529 | N35: -192.6519607 | O35: -27.27227938
B36: 0.0431119484 | C36: -0.0431119484 | E36: 0.35 | F36: 0.856 | G36: 0.1303119186 | H36: 0.004049384456 | I36: -0.01566038539 | J36: -0.001606706747 | K36: -0.0005985683684 | L36: -0.001808354563 | M36: -0.001223898843 | N36: -265.834207 | O36: -24.33617681
A37: 1次モードのひずみエネルギー | B37: =B8*B29^2 -> 450000 | C37: =B9*(B30-B29)^2 -> 9839976.238 | E37: 0.36 | F37: 0.86 | G37: 0.1646531094 | H37: 0.003616351826 | I37: -0.01425068726 | J37: -0.00165446286 | K37: -0.0007483730977 | L37: -0.001824654429 | M37: -0.00108895581 | N37: -333.562589 | O37: -21.65154292
A38: 2次モードのひずみエネルギー | B38: =B8*C29^2 -> 450000 | C38: =B9*(C30-C29)^2 -> 20579.31799 | E38: 0.37 | F38: 0.864 | G38: 0.1951337381 | H38: 0.003239695952 | I38: -0.01251857646 | J38: -0.001706650362 | K38: -0.0008824503597 | L38: -0.001841455572 | M38: -0.0009699117206 | N38: -394.286644 | O38: -19.28819552
A39: 1次モードの減衰定数 | B39: =(B6*B37+B7*C37)/(B37+C37) -> 0.02 | E39: 0.38 | F39: 0.868 | G39: 0.2210636454 | H39: 0.002929331361 | I39: -0.01050652903 | J39: -0.001762648838 | K39: -0.0009977760788 | L39: -0.001858798724 | M39: -0.000869874732 | N39: -446.6356847 | O39: -17.30787376
A40: 2次モードの減衰定数 | B40: =(B6*B38+B7*C38)/(B38+C38) -> 0.02 | E40: 0.39 | F40: 0.872 | G40: 0.2418643072 | H40: 0.002693568375 | I40: -0.008263331008 | J40: -0.001821747814 | K40: -0.001091787213 | L40: -0.001876718259 | M40: -0.0007914916763 | N40: -489.4452615 | O40: -15.76302522
A41: 換算質量行列：Ms=fai^T*M*fai | B41: =MMULT(MMULT(B31:C32,B16:C17),B29:C30) -> 3226165.426 | C41: -1.557509677e-10 | E41: 0.4 | F41: 0.876 | G41: 0.2570810902 | H41: 0.002538936041 | I41: -0.00584288735 | J41: -0.001883163518 | K41: -0.00116243667 | L41: -0.001895241186 | M41: -0.0007368912008 | N41: -521.7820102 | O41: -14.69568057
B42: -1.56205715e-10 | C42: 2001.240631 | E42: 0.41 | F42: 0.88 | G42: 0.2663929346 | H42: 0.002470042622 | I42: -0.003302924811 | J42: -0.001946057401 | K42: -0.0012082373 | L42: -0.001914386434 | M42: -0.0007076378335 | N42: -542.9637026 | O42: -14.13654796
A43: 換算減衰行列：Cs=2h.omega*M | B43: =2*B39*B23*B41 -> 230467.926 | C43: 0 | E43: 0.42 | F43: 0.884 | G43: 0.2696189728 | H43: 0.002489480318 | I43: -0.0007036156751 | J43: -0.002009555878 | K43: -0.001228292971 | L43: -0.001934164376 | M43: -0.0007046990615 | N43: -552.5735276 | O43: -14.10436853
B44: 0 | C44: =2*B40*B24*C42 -> 1227.512901 | E44: 0.43 | F44: 0.888 | G44: 0.2667218719 | H44: 0.002597777135 | I44: 0.001893846314 | J44: -0.002072770786 | K44: -0.001222315798 | L44: -0.001954576567 | M44: -0.0007284264059 | N44: -550.4681598 | O44: -14.60555224
A45: Cs.fai^(-1) | B45: =MMULT(B43:C44,B33:C34) -> 142.8742148 | C45: 9935.921334 | E45: 0.44 | F45: 0.891 | G45: 0.2578077485 | H45: 0.002793393584 | I45: 0.004428739571 | J45: -0.002134765102 | K45: -0.001190628924 | L45: -0.0019756155 | M45: -0.0007785509497 | N45: -536.7793426 | O45: -15.63410311
B46: 1226.751928 | C46: -52.92047285 | E46: 0.45 | F46: 0.894 | G46: 0.2431227386 | H46: 0.003072774998 | I46: 0.006842168622 | J46: -0.002194638308 | K46: -0.001134154779 | L46: -0.001997264274 | M46: -0.0008541933087 | N46: -511.9089074 | O46: -17.17183299
A47: 粘性減衰マトリックス：fai^(-T).Cs.fai^(-1) | B47: =MMULT(B35:C36,B45:C46) -> 1226.079998 | C47: -46.72808003 | E47: 0.46 | F47: 0.898 | G47: 0.2230466008 | H47: 0.003430452169 | I47: 0.009078342547 | J47: -0.002251635982 | K47: -0.001054390615 | L47: -0.002019497659 | M47: -0.0009538877802 | N47: -476.5180489 | O47: -19.18885851
B48: -46.72808003 | C48: 430.6384326 | E48: 0.47 | F48: 0.9 | G48: 0.1980829955 | H48: 0.003859166302 | I48: 0.01108608152 | J48: -0.002304948716 | K48: -0.0009533703503 | L48: -0.002042282877 | M48: -0.001075619981 | N48: -431.5104866 | O48: -21.644367
A49: 細分化した時間刻み：ddt | B49: =B3/B14 -> 0.001 | E49: 0.48 | F49: 0.903 | G49: 0.1688468505 | H49: 0.004350056744 | I49: 0.01281984061 | J49: -0.002353877996 | K49: -0.0008336130053 | L49: -0.002065578911 | M49: -0.001216876601 | N49: -378.0094669 | O49: -24.4876236
E50: 0.49 | F50: 0.905 | G50: 0.1360498148 | H50: 0.004892873303 | I50: 0.01424075209 | J50: -0.002397847205 | K50: -0.0006980632088 | L50: -0.002089338434 | M50: -0.001374705892 | N50: -317.3311693 | O50: -27.65919165
E51: 0.5 | F51: 0.908 | G51: 0.1004838643 | H51: 0.00547620781 | I51: 0.01531751837 | J51: -0.002436407306 | K51: -0.0005500239277 | L51: -0.002113507522 | M51: -0.001545784472 | N51: -250.9543581 | O51: -31.09227801
A52: 橋脚の履歴復元力モデル | B52: クラフ | C52: =IF(B52="線形",1,IF(B52="クラフ",2,3)) -> 2 | E52: 0.51 | F52: 0.91 | G52: 0.06300670112 | H52: 0.006087695044 | I52: 0.0160271982 | J52: -0.002469206594 | K52: -0.0003930995773 | L52: -0.002138024053 | M52: -0.001726476034 | N52: -180.4933255 | O52: -34.71391481
A53: 支承の履歴復元力モデル | B53: バイリニア＋ハードニング | C53: =IF(B53="線形",1,IF(B53="バイリニア",2,3)) -> 3 | E53: 0.52 | F53: 0.912 | G53: 0.02455891975 | H53: 0.006713687564 | I53: 0.0163560023 | J53: -0.002495957337 | K53: -0.0002313190249 | L53: -0.002162785481 | M53: -0.001912732277 | N53: -107.7312237 | O53: -38.44298564
A54: 橋脚の絶対最大加速度 | B54: =MAX(MAX(G2:INDIRECT("g"&INDIRECT("b2"))),-MIN(G2:INDIRECT("g"&INDIRECT("b2")))) -> 8.23434047 | C54: m/s/s | E54: 0.53 | F54: 0.914 | G54: -0.01372303383 | H54: 0.007337382354 | I54: 0.01629926359 | J54: -0.0025164785 | K54: -6.935592604e-05 | L54: -0.002187602602 | M54: -0.002099529957 | N54: -34.83469209 | O54: -42.17896848
A55: 桁の絶対最大加速度 | B55: =MAX(MAX(H2:INDIRECT("h"&INDIRECT("b2"))),-MIN(H2:INDIRECT("h"&INDIRECT("b2")))) -> 0.1360386739 | C55: m/s/s | E55: 0.54 | F55: 0.916 | G55: -0.05151254961 | H55: 0.007955169797 | I55: 0.01586091139 | J55: -0.002531143486 | K55: 9.138091777e-05 | L55: -0.00221278902 | M55: -0.002285767259 | N55: 37.56021635 | O55: -45.89986118
A56: 橋脚の最大速度 | B56: =MAX(MAX(I2:INDIRECT("i"&INDIRECT("b2"))),-MIN(I2:INDIRECT("i"&INDIRECT("b2")))) -> 0.4904979736 | C56: m/s | E56: 0.55 | F56: 0.917 | G56: -0.08773381193 | H56: 0.008551180588 | I56: 0.01505255396 | J56: -0.002539923249 | K56: 0.0002461498918 | L56: -0.002238135262 | M56: -0.002466651488 | N56: 107.3833848 | O56: -49.50991802
A57: 支承の最大速度 | B57: =MAX(MAX(J2:INDIRECT("j"&INDIRECT("b2"))),-MIN(J2:INDIRECT("j"&INDIRECT("b2")))) -> 1.238643977 | C57: m/s | E57: 0.56 | F57: 0.918 | G57: -0.1214821501 | H57: 0.009112254354 | I57: 0.01389485845 | J57: -0.002543033411 | K57: 0.0003911224726 | L57: -0.002263548936 | M57: -0.002638171633 | N57: 172.8801429 | O57: -52.92911814
A58: 橋脚の最大変位 | B58: =MAX(MAX(K2:INDIRECT("k"&INDIRECT("b2"))),-MIN(K2:INDIRECT("k"&INDIRECT("b2")))) -> 0.06969035747 | C58: m | E58: 0.57 | F58: 0.919 | G58: -0.1519733925 | H58: 0.009627075405 | I58: 0.01241687495 | J58: -0.002540880909 | K58: 0.0005229087619 | L58: -0.002288969891 | M58: -0.002796842027 | N58: 232.5159378 | O58: -56.08803473
A59: 支承の最大変位 | B59: =MAX(MAX(L2:INDIRECT("l"&INDIRECT("b2"))),-MIN(L2:INDIRECT("l"&INDIRECT("b2")))) -> 0.3136773982 | C59: m | E59: 0.58 | F59: 0.92 | G59: -0.1785112276 | H59: 0.01008560447 | I59: 0.01065505896 | J59: -0.002533982869 | K59: 0.0006384721843 | L59: -0.002314346435 | M59: -0.002939536446 | N59: 284.9155864 | O59: -58.92450598
A60: 層間最大変位 | B60: =MAX(MAX(M2:INDIRECT("m"&INDIRECT("b2"))),-MIN(M2:INDIRECT("m"&INDIRECT("b2")))) -> 0.3552066448 | C60: m | E60: 0.59 | F60: 0.921 | G60: -0.2004977047 | H60: 0.01047921963 | I60: 0.008652314663 | J60: -0.00252295024 | K60: 0.0007351800256 | L60: -0.002339633475 | M60: -0.003063533465 | N60: 328.8845545 | O60: -61.38453242
A61: 橋脚の最大復元力 | B61: =MAX(MAX(N2:INDIRECT("n"&INDIRECT("b2"))),-MIN(N2:INDIRECT("n"&INDIRECT("b2")))) -> 16302.37785 | C61: kN | E61: 0.6 | F61: 0.921 | G61: -0.2174456136 | H61: 0.01080088774 | I61: 0.006456989135 | J61: -0.002508416909 | K61: 0.0008108588282 | L61: -0.002364792566 | M61: -0.003166572288 | N61: 363.4338455 | O61: -63.42338301
A62: 支承の最大復元力 | B62: =MAX(MAX(O2:INDIRECT("o"&INDIRECT("b2"))),-MIN(O2:INDIRECT("o"&INDIRECT("b2")))) -> 545.0832318 | C62: kN | E62: 0.61 | F62: 0.922 | G62: -0.2289888884 | H62: 0.01104532096 | I62: 0.004121581465 | J62: -0.002491143033 | K62: 0.000863841508 | L62: -0.002389792116 | M62: -0.003246901096 | N62: 387.8014316 | O62: -65.00655025
E63: 0.62 | F63: 0.922 | G63: -0.2348901894 | H63: 0.01120908224 | I63: 0.001701571416 | J63: -0.002471911359 | K63: 0.0008930020937 | L63: -0.002414608677 | M63: -0.003303314284 | N63: 401.4681262 | O63: -66.11048226
E64: 0.63 | F64: 0.923 | G64: -0.2350457407 | H64: 0.01129065538 | I64: -0.0007459389596 | J64: -0.002451548698 | K64: 0.0008977791988 | L64: -0.00243922654 | M64: -0.003335176862 | N64: 404.1684486 | O64: -66.72305746
E65: 0.64 | F65: 0.923 | G65: -0.2294868029 | H65: 0.01129046552 | I65: -0.003163531871 | J65: -0.002430866294 | K65: 0.0008781850318 | L65: -0.002463638562 | M65: -0.003342435629 | N65: 395.8949648 | O65: -66.84379444
E66: 0.65 | F66: 0.923 | G66: -0.2183783029 | H66: 0.01121085557 | I66: -0.005494805287 | J66: -0.002410625574 | K66: 0.0008348024129 | L66: -0.002487845213 | M66: -0.003325616613 | N66: 376.8972457 | O66: -66.48378708
E67: 0.66 | F67: 0.923 | G67: -0.2020140462 | H67: 0.01105602419 | I67: -0.007685766548 | J67: -0.002391599241 | K67: 0.0007687673411 | L67: -0.00251185472 | M67: -0.0032858091 | N67: 347.6743305 | O67: -65.66537172
E68: =E67+$B$3 -> 0.67 | F68: 0.923 | G68: -0.1808090688 | H68: 0.01083191308 | I68: -0.009686037342 | J68: -0.002374508279 | K68: 0.0006817390165 | L68: -0.002535682744 | M68: -0.003224636605 | N68: 308.9615042 | O68: -64.42153387
E69: 0.68 | F69: 0.923 | G69: -0.1552892464 | H69: 0.01054605734 | I69: -0.01145001237 | J69: -0.002360005287 | K69: 0.0005758581227 | L69: -0.002559351737 | M69: -0.003144215662 | N69: 261.7117734 | O69: -62.79507214
E70: 0.69 | F70: 0.922 | G70: -0.1260785422 | H70: 0.01020739728 | I70: -0.01293784687 | J70: -0.002348604677 | K70: 0.0004536947707 | L70: -0.002582889868 | M70: -0.003047103697 | N70: 207.0726289 | O70: -60.83754496
E71: 0.7 | F71: 0.922 | G71: -0.0938842614 | H71: 0.009826072786 | I71: -0.01411648262 | J71: -0.002340788835 | K71: 0.0003181882215 | L71: -0.002606329479 | M71: -0.002936237924 | N71: 146.35904 | O71: -58.60803921
E72: 0.71 | F72: 0.922 | G72: -0.0594815753 | H72: 0.009413197846 | I72: -0.01496038094 | J72: -0.002336967911 | K72: 0.0001725839389 | L72: -0.00262970569 | M72: -0.002814870666 | N72: 81.02470364 | O72: -56.17186876
E73: 0.72 | F73: 0.922 | G73: -0.02370564797 | H73: 0.00898071584 | I73: -0.01545211434 | J73: -0.002337387345 | K73: 2.04127978e-05 | L73: -0.002653046228 | M73: -0.002686529669 | N73: 12.6478288 | O73: -53.59977385
E74: 0.73 | F74: 0.921 | G74: 0.01244146617 | H74: 0.008542644946 | I74: -0.01558309995 | J74: -0.002342082761 | K74: -0.0001339443396 | L74: -0.002676271554 | M74: -0.00255539481 | N74: -56.86169339 | O74: -50.97544717
E75: 0.74 | F75: 0.921 | G75: 0.04824345968 | H75: 0.008109565369 | I75: -0.01535274863 | J75: -0.002351114315 | K75: -0.0002879439325 | L75: -0.002699587322 | M75: -0.002424636752 | N75: -126.1354009 | O75: -48.3623165
E76: 0.75 | F76: 0.92 | G76: 0.08313380615 | H76: 0.007690211975 | I76: -0.01476852328 | J76: -0.002364389985 | K76: -0.0004386726142 | L76: -0.00272313738 | M76: -0.002296898789 | N76: -194.0838841 | O76: -45.81317939
E77: 0.76 | F77: 0.92 | G77: 0.1161088637 | H77: 0.0072985467 | I77: -0.01384531855 | J77: -0.0023816753 | K77: -0.0005819545329 | L77: -0.002746856425 | M77: -0.002176416477 | N77: -258.7661548 | O77: -43.41260443
E78: 0.77 | F78: 0.919 | G78: 0.1463876462 | H78: 0.00694572256 | I78: -0.01260654533 | J78: -0.002402618234 | K78: -0.0007144337236 | L78: -0.002770771445 | M78: -0.002066609477 | N78: -318.6596843 | O78: -41.22875527
E79: 0.78 | F79: 0.918 | G79: 0.1732737056 | H79: 0.006641711456 | I79: -0.01108298481 | J79: -0.00242672961 | K79: -0.0008330852787 | L79: -0.002794913943 | M79: -0.001970567089 | N79: -372.3952939 | O79: -39.3231123
E80: 0.79 | F80: 0.918 | G80: 0.1961572618 | H80: 0.00639525319 | I80: -0.009312038568 | J80: -0.00245352712 | K80: -0.0009352372758 | L80: -0.002819312266 | M80: -0.001891027656 | N80: -418.7619378 | O80: -37.75006975
E81: 0.8 | F81: 0.917 | G81: 0.2145268196 | H81: 0.0062136732 | I81: -0.007336619674 | J81: -0.002482383308 | K81: -0.001018623805 | L81: -0.002843989966 | M81: -0.001830324093 | N81: -456.7302094 | O81: -36.5558557
E82: 0.81 | F82: 0.916 | G82: 0.2279798071 | H82: 0.006102727263 | I82: -0.005204135905 | J82: -0.002512571389 | K82: -0.001081432571 | L82: -0.002868963745 | M82: -0.001790333408 | N82: -485.4738679 | O82: -35.77753305
E83: 0.82 | F83: 0.915 | G83: 0.236231265 | H83: 0.00606648302 | I83: -0.002965427779 | J83: -0.002543361066 | K83: -0.001122344168 | L83: -0.002894243178 | M83: -0.001772436043 | N83: -504.3877225 | O83: -35.44219784
E84: 0.83 | F84: 0.915 | G84: 0.2391198097 | H84: 0.006107235861 | I84: -0.0006735662553 | J84: -0.002574046081 | K84: -0.001140560016 | L84: -0.002919830592 | M84: -0.001777486625 | N84: -513.1004599 | O84: -35.56640646
E85: 0.84 | F85: 0.914 | G85: 0.2366106259 | H85: 0.006225458259 | I85: 0.001617523291 | J85: -0.002603842174 | K85: -0.001135818003 | L85: -0.002945721124 | M85: -0.00180579711 | N85: -511.4819885 | O85: -36.15585128
E86: 0.85 | F86: 0.913 | G86: 0.2287952954 | H86: 0.006419801031 | I86: 0.003854298595 | J86: -0.002631935464 | K86: -0.00110839433 | L86: -0.002971901645 | M86: -0.001857132588 | N86: -499.6445442 | O86: -37.20528965
E87: 0.86 | F87: 0.912 | G87: 0.2158890025 | H87: 0.006687140432 | I87: 0.005984772255 | J87: -0.002657580383 | K87: -0.001059094124 | L87: -0.002998351286 | M87: -0.001930719929 | N87: -477.9387276 | O87: -38.69872942
E88: 0.87 | F88: 0.911 | G88: 0.1982247683 | H88: 0.007022658271 | I88: 0.007959764173 | J88: -0.002680072049 | K88: -0.0009892295665 | L88: -0.003025041878 | M88: -0.00202526887 | N88: -446.943942 | O88: -40.6098631
E89: 0.88 | F89: 0.91 | G89: 0.1762449759 | H89: 0.007419963688 | I89: 0.009734036475 | J89: -0.002698762605 | K89: -0.0009005862644 | L89: -0.003051938402 | M89: -0.002139004963 | N89: -407.4535057 | O89: -42.90273839
E90: 0.89 | F90: 0.908 | G90: 0.1504903684 | H90: 0.007871246654 | I90: 0.01126738515 | J90: -0.002713021351 | K90: -0.0007953787795 | L90: -0.003078999366 | M90: -0.002269713404 | N90: -360.454872 | O90: -45.53264539
E91: 0.9 | F91: 0.907 | G91: 0.1215870462 | H91: 0.008367471824 | I91: 0.0125254371 | J91: -0.002722367428 | K91: -0.0006761971375 | L91: -0.003106177053 | M91: -0.002414791998 | N91: -307.1056766 | O91: -48.44718528
E92: 0.91 | F92: 0.906 | G92: 0.09023229498 | H92: 0.008898581686 | I92: 0.01348046366 | J92: -0.00272645237 | K92: -0.0005459487711 | L92: -0.003133418709 | M92: -0.002571310174 | N92: -248.7075775 | O92: -51.58745876
E93: 0.92 | F93: 0.905 | G93: 0.05718143304 | H93: 0.00945366994 | I93: 0.01411212198 | J93: -0.00272499076 | K93: -0.0004078071553 | L93: -0.00316066355 | M93: -0.002736060417 | N93: -186.6818917 | O93: -54.88910153
E94: 0.93 | F94: 0.904 | G94: 0.02326164874 | H94: 0.01002071086 | I94: 0.0144080922 | J94: -0.002717830971 | K94: -0.0002653122432 | L94: -0.003187810283 | M94: -0.002905473724 | N94: -122.5963704 | O94: -58.2806002
E95: 0.94 | F95: 0.902 | G95: -0.0105224772 | H95: 0.01058474545 | I95: 0.01436420964 | J95: -0.00270492697 | K95: -0.0001226058849 | L95: -0.003214658016 | M95: -0.003075075593 | N95: -58.36552707 | O95: -61.67241528
E96: 0.95 | F96: 0.901 | G96: -0.04387904746 | H96: 0.01114271835 | I96: 0.01398382727 | J96: -0.00268615939 | K96: 1.906842832e-05 | L96: -0.003241554259 | M96: -0.003243942923 | N96: 5.441175713 | O96: -65.04610921
E97: 0.96 | F97: 0.899 | G97: -0.0758664469 | H97: 0.01168067356 | I97: 0.01327704309 | J97: -0.002661738061 | K97: 0.0001555495363 | L97: -0.003268282614 | M97: -0.003407856005 | N97: 67.01241499 | O97: -68.31738393
E98: 0.97 | F98: 0.898 | G98: -0.1056839407 | H98: 0.01218692295 | I98: 0.01226191203 | J98: -0.002631955251 | K98: 0.0002834519514 | L98: -0.003294748863 | M98: -0.003563251153 | N98: 124.7956691 | O98: -71.41514098
E99: 0.98 | F99: 0.897 | G99: -0.1326388455 | H99: 0.01265146059 | I99: 0.01096390429 | J99: -0.002597230209 | K99: 0.0003997820115 | L99: -0.003320895465 | M99: -0.003707045469 | N99: 177.4357294 | O99: -74.27797419
E100: 0.99 | F100: 0.895 | G100: -0.1561159539 | H100: 0.01306540246 | I100: 0.009415132572 | J100: -0.002557975168 | K100: 0.0005018572021 | L100: -0.003346673317 | M100: -0.00383647389 | N100: 223.7177716 | O100: -76.85090127
E101: 1 | F101: 0.894 | G101: -0.175586701 | H101: 0.01342111718 | I101: 0.007653343012 | J101: -0.002514749687 | K101: 0.0005873508369 | L101: -0.003372038981 | M101: -0.003949127879 | N101: 262.5861525 | O101: -79.08612921
E102: 1.01 | F102: 0.892 | G102: -0.1906199091 | H102: 0.01371237485 | I102: 0.005721067795 | J102: -0.002468161437 | K102: 0.0006543400814 | L102: -0.003396955586 | M102: -0.004043004659 | N102: 293.1659696 | O102: -80.94402944
E103: 1.02 | F103: 0.891 | G103: -0.2008911066 | H103: 0.01393448097 | I103: 0.003664553785 | J103: -0.002418892455 | K103: 0.0007013479879 | L103: -0.003421392515 | M103: -0.00411654984 | N103: 314.7821667 | O103: -82.39398018
E104: 1.03 | F104: 0.889 | G104: -0.2061892486 | H104: 0.01408437219 | I104: 0.001532695889 | J104: -0.002367642541 | K104: 0.0007273743589 | L104: -0.003445326501 | M104: -0.004168690427 | N104: 326.9736388 | O104: -83.41501534
E105: 1.04 | F105: 0.888 | G105: -0.2064210388 | H105: 0.01416067903 | I105: -0.0006241650726 | J105: -0.002315153032 | K105: 0.0007319166913 | L105: -0.003468741173 | M105: -0.004198856497 | N105: 329.502925 | O105: -83.99624632
E106: 1.05 | F106: 0.886 | G106: -0.2016122552 | H106: 0.0141637442 | I106: -0.002755389548 | J106: -0.002262149481 | K106: 0.0007149782252 | L106: -0.003491627878 | M106: -0.004206991238 | N106: 322.3600817 | O106: -84.13705077
E107: 1.06 | F107: 0.885 | G107: -0.1919065357 | H107: 0.01409560579 | I107: -0.004811266709 | J107: -0.002209364646 | K107: 0.000677065391 | L107: -0.003513984919 | M107: -0.004193548852 | N107: 305.7618111 | O107: -83.84701868
E108: 1.07 | F108: 0.883 | G108: -0.1775611833 | H108: 0.01395993626 | I108: -0.006744132626 | J108: -0.002157481995 | K108: 0.000619172315 | L108: -0.003535818028 | M108: -0.004159480698 | N108: 280.1447344 | O108: -83.14566327
E109: 1.08 | F109: 0.882 | G109: -0.1589405925 | H109: 0.01376194848 | I109: -0.008509513736 | J109: -0.002107159512 | K109: 0.0005427553019 | L109: -0.003557139281 | M109: -0.004106209808 | N109: 246.1541659 | O109: -82.06190022
E110: 1.09 | F110: 0.88 | G110: -0.1365070045 | H110: 0.01350826208 | I110: -0.01006711015 | J110: -0.002058975629 | K110: 0.0004496956016 | L110: -0.003577967221 | M110: -0.004035594791 | N110: 204.6275642 | O110: -80.63331517
E111: 1.1 | F111: 0.879 | G111: -0.1108093433 | H111: 0.01320674326 | I111: -0.01138175607 | J111: -0.002013455302 | K111: 0.0003422540372 | L111: -0.003598325413 | M111: -0.003949883915 | N111: 156.5743091 | O111: -78.90523596
E112: 1.11 | F112: 0.877 | G112: -0.08247013706 | H112: 0.01286631533 | I112: -0.01242418105 | J112: -0.001971020134 | K112: 0.0002230172232 | L112: -0.003618242061 | M112: -0.003851661543 | N112: 103.1515589 | O112: -76.92965312
E113: 1.12 | F113: 0.876 | G113: -0.05217212236 | H113: 0.0124967636 | I113: -0.01317172339 | J113: -0.001932018852 | K113: 9.484323002e-05 | L113: -0.003637747397 | M113: -0.00374379096 | N113: 45.63948239 | O113: -74.76406938
E114: 1.13 | F114: 0.875 | G114: -0.02065073399 | H114: 0.01210861348 | I114: -0.0136089389 | J114: -0.001896746382 | K114: -3.915945371e-05 | L114: -0.003656866986 | M114: -0.003629379112 | N114: -14.57230415 | O114: -72.47078861
E115: 1.14 | F115: 0.873 | G115: 0.01121834515 | H115: 0.01171416985 | I115: -0.01372810936 | J115: -0.001865418962 | K115: -0.0001751676916 | L115: -0.003675546509 | M115: -0.003512090422 | N115: -75.81528365 | O115: -70.12318621
E116: 1.15 | F116: 0.872 | G116: 0.04278847276 | H116: 0.0113229084 | I116: -0.01352856113 | J116: -0.001837873385 | K116: -0.0003108541905 | L116: -0.003693942339 | M116: -0.003394768877 | N116: -136.8538828 | O116: -67.77815516
E117: 1.16 | F117: 0.87 | G117: 0.07356364611 | H117: 0.01094243042 | I117: -0.01301680277 | J117: -0.001813879125 | K117: -0.0004436871575 | L117: -0.003712178101 | M117: -0.003279718135 | N117: -196.7341165 | O117: -65.48170667
E118: 1.17 | F118: 0.869 | G118: 0.1026615095 | H118: 0.0105850588 | I118: -0.01220587417 | J118: -0.001793404774 | K118: -0.0005699879014 | L118: -0.003730204828 | M118: -0.003170672341 | N118: -253.7498439 | O118: -63.30840084
E119: 1.18 | F119: 0.868 | G119: 0.129392339 | H119: 0.01026065242 | I119: -0.0111163631 | J119: -0.001776224742 | K119: -0.0006867930862 | L119: -0.003748047229 | M119: -0.003070652169 | N119: -306.5565772 | O119: -61.31845016
E120: 1.19 | F120: 0.867 | G120: 0.1531411067 | H120: 0.009978025008 | I120: -0.009775351031 | J120: -0.001761963839 | K120: -0.0007914317317 | L120: -0.00376573428 | M120: -0.002982386506 | N120: -353.9453482 | O120: -59.56616409
E121: 1.2 | F121: 0.865 | G121: 0.173368909 | H121: 0.009744897159 | I121: -0.008215624564 | J121: -0.001750107004 | K121: -0.000881543086 | L121: -0.003783291994 | M121: -0.002908295598 | N121: -394.8462041 | O121: -58.09961998
E122: 1.21 | F122: 0.864 | G122: 0.1896232027 | H122: 0.009567752717 | I122: -0.006474967636 | J122: -0.001740133275 | K122: -0.0009551227979 | L122: -0.003800741354 | M122: -0.002850443017 | N122: -428.3486011 | O122: -56.95971084
E123: 1.22 | F123: 0.863 | G123: 0.2015475784 | H123: 0.00945169834 | I123: -0.004595207269 | J123: -0.001731498612 | K123: -0.001010566746 | L123: -0.003818098426 | M123: -0.002810491203 | N123: -453.7212401 | O123: -56.1792654
E124: 1.23 | F124: 0.862 | G124: 0.2088892404 | H124: 0.00940034869 | I124: -0.002621127744 | J124: -0.001723571034 | K124: -0.001046705193 | L124: -0.00383537337 | M124: -0.002789665378 | N124: -470.4276442 | O124: -55.78233648
E125: 1.24 | F125: 0.86 | G125: 0.211504145 | H125: 0.009415750649 | I125: -0.0005993927381 | J125: -0.001715635901 | K125: -0.001062826903 | L125: -0.003852569719 | M125: -0.002788727634 | N125: -478.1372486 | O125: -55.78369361
E126: 1.25 | F126: 0.859 | G126: 0.2093596789 | H126: 0.009498352288 | I126: 0.001422439372 | J126: -0.001707031916 | K126: -0.001058692623 | L126: -0.003869683869 | M126: -0.002807961842 | N126: -476.7316809 | O126: -56.18853232
E127: 1.26 | F127: 0.858 | G127: 0.2025349336 | H127: 0.009647000051 | I127: 0.003397064539 | J127: -0.001697137075 | K127: -0.001034538712 | L127: -0.003886706052 | M127: -0.002847169851 | N127: -466.3066536 | O127: -56.99240955
E128: 1.27 | F128: 0.857 | G128: 0.1912180543 | H128: 0.009858969919 | I128: 0.005278618189 | J128: -0.001685304643 | K128: -0.0009910683519 | L128: -0.003903620053 | M128: -0.002905678891 | N128: -447.1682706 | O128: -58.18140287
E129: 1.28 | F129: 0.855 | G129: 0.1757011008 | H129: 0.01013003952 | I129: 0.007023750245 | J129: -0.001670868601 | K129: -0.0009294319461 | L129: -0.003920403151 | M129: -0.00298236003 | N129: -419.8244483 | O129: -59.73249052
E130: 1.29 | F130: 0.854 | G130: 0.1563726117 | H130: 0.01045460252 | I130: 0.008592506086 | J130: -0.001653277779 | K130: -0.000851197369 | L130: -0.003937026228 | M130: -0.003075657038 | N130: -384.9717166 | O130: -61.61413889
E131: 1.3 | F131: 0.853 | G131: 0.1337082004 | H131: 0.01082580499 | I131: 0.009949272498 | J131: -0.001632079606 | K131: -0.0007583120328 | L131: -0.003953455321 | M131: -0.003183624958 | N131: -343.478352 | O131: -63.78708335
E132: =E131+$B$3 -> 1.31 | F132: 0.851 | G132: 0.108258913 | H132: 0.01123570107 | I132: 0.0110637238 | J132: -0.001606797045 | K132: -0.0006530554453 | L132: -0.003969651608 | M132: -0.003303976839 | N132: -296.3631902 | O132: -66.20527127
E133: 1.32 | F133: 0.849 | G133: 0.08063848872 | H133: 0.01167544106 | I133: 0.0119114036 | J133: -0.001577049333 | K133: -0.0005379866598 | L133: -0.003985571195 | M133: -0.003434135844 | N133: -244.7719149 | O133: -68.81691129
E134: 1.33 | F134: 0.848 | G134: 0.05151195776 | H134: 0.01213544024 | I134: 0.0124742166 | J134: -0.001542656012 | K134: -0.0004158994197 | L134: -0.00400116489 | M134: -0.003571282198 | N134: -189.9558066 | O134: -71.56541831
E135: 1.34 | F135: 0.846 | G135: 0.02160555989 | H135: 0.01260519431 | I135: 0.01274117884 | J135: -0.001503531503 | K135: -0.0002898978568 | L135: -0.004016363184 | M135: -0.003712298029 | N135: -133.2913981 | O135: -74.3883166
E136: 1.35 | F136: 0.843 | G136: -0.008210261864 | H136: 0.0130719474 | I136: 0.01270848946 | J136: -0.001459745921 | K136: -0.0001635857452 | L136: -0.004031045124 | M136: -0.003853366129 | N136: -76.43853053 | O136: -77.2092184
E137: 1.36 | F137: 0.841 | G137: -0.03763752508 | H137: 0.01353191299 | I137: 0.01237899222 | J137: -0.001410766119 | K137: -3.821062824e-05 | L137: -0.004045365526 | M137: -0.003993354572 | N137: -19.97400827 | O137: -80.00550128
E138: 1.37 | F138: 0.838 | G138: -0.06586847393 | H138: 0.0139732989 | I138: 0.01176159251 | J138: -0.001356949154 | K138: 8.264712679e-05 | L138: -0.004059198803 | M138: -0.004128692901 | N138: 34.54704458 | O138: -82.70584233
E139: 1.38 | F139: 0.834 | G139: -0.09219656078 | H139: 0.01438584445 | I139: 0.01087221772 | J139: -0.001298500067 | K139: 0.0001959990118 | L139: -0.004072475897 | M139: -0.004256253565 | N139: 85.75439169 | O139: -85.24784478
E140: 1.39 | F140: 0.83 | G140: -0.1160106535 | H140: 0.01476072555 | I140: 0.009733307463 | J140: -0.001235720884 | K140: 0.0002992038568 | L140: -0.004085148401 | M140: -0.004373319357 | N140: 132.4523649 | O140: -87.57738562
E141: 1.4 | F141: 0.825 | G141: -0.1367678572 | H141: 0.01509010587 | I141: 0.008373084852 | J141: -0.001168979488 | K141: 0.0003898946824 | L141: -0.004097173881 | M141: -0.004477451489 | N141: 173.5690488 | O141: -89.64596953
E142: 1.41 | F142: 0.82 | G142: -0.1540015498 | H142: 0.01536724674 | I142: 0.006824792837 | J142: -0.001098725117 | K142: 0.0004660176248 | L142: -0.004108514421 | M142: -0.004566524414 | N142: 208.1725986 | O142: -91.41141768
E143: 1.42 | F143: 0.815 | G143: -0.1673308381 | H143: 0.01558664612 | I143: 0.005125837741 | J143: -0.001025512016 | K143: 0.0005258744397 | L143: -0.00411913743 | M143: -0.004638769401 | N143: 235.4903377 | O143: -92.83873126
E144: 1.43 | F144: 0.81 | G144: -0.1764686773 | H144: 0.01574415227 | I144: 0.003316927841 | J144: -0.0009499419425 | K144: 0.0005681589594 | L144: -0.004129016194 | M144: -0.004692812351 | N144: 254.9253084 | O144: -93.90083843
E145: 1.44 | F145: 0.806 | G145: -0.1812278511 | H145: 0.0158370541 | I145: 0.001441043545 | J145: -0.0008727052693 | K145: 0.0005919847227 | L145: -0.004138130429 | M145: -0.004727702911 | N145: 266.0689208 | O145: -94.57916696
E146: 1.45 | F146: 0.801 | G146: -0.1815247037 | H146: 0.01586412724 | I146: -0.0004574637368 | J146: -0.0007944462164 | K146: 0.0005969027594 | L146: -0.00414646682 | M146: -0.004742933822 | N146: 268.7091508 | O146: -94.86402075
E147: 1.46 | F147: 0.798 | G147: -0.1773805102 | H147: 0.01582566156 | I147: -0.002334058174 | J147: -0.000715887977 | K147: 0.0005829099382 | L147: -0.004154018475 | M147: -0.004738449781 | N147: 262.8345638 | O147: -94.75474657
E148: 1.47 | F148: 0.794 | G148: -0.1689201415 | H148: 0.01572343837 | I148: -0.004144958397 | J148: -0.000637712665 | K148: 0.0005504452386 | L148: -0.004160786075 | M148: -0.004714645902 | N148: 248.632842 | O148: -94.25969259
E149: 1.48 | F149: 0.791 | G149: -0.1563687665 | H149: 0.0155606793 | I149: -0.005848163171 | J149: -0.0005605515262 | K149: 0.0005003779361 | L149: -0.004166776447 | M149: -0.004672355525 | N149: 226.4857013 | O149: -93.39595422
E150: 1.49 | F150: 0.788 | G150: -0.14004581 | H150: 0.01534196615 | I150: -0.007404483747 | J150: -0.0004850312413 | K150: 0.000433984065 | L150: -0.004172002986 | M150: -0.004612828064 | N150: 196.9585237 | O150: -92.18892114
E151: 1.5 | F151: 0.785 | G151: -0.1203570683 | H151: 0.01507312053 | I151: -0.008778365601 | J151: -0.0004116808905 | K151: 0.0003529146575 | L151: -0.004176484788 | M151: -0.004537697292 | N151: 160.7862443 | O151: -90.67163376
E152: 1.51 | F152: 0.782 | G152: -0.09778481545 | H152: 0.01476106434 | I152: -0.00993874609 | J152: -0.0003409656013 | K152: 0.0002591555359 | L152: -0.004180245929 | M152: -0.00444894118 | N152: 118.8554243 | O152: -88.8839717
E153: 1.52 | F153: 0.779 | G153: -0.07287639753 | H153: 0.01441365576 | I153: -0.01085976143 | J153: -0.0002732771984 | K153: 0.0001549804908 | L153: -0.004183314766 | M153: -0.004348834911 | N153: 72.18325491 | O153: -86.8717067
E154: 1.53 | F154: 0.776 | G154: -0.04623232948 | H154: 0.01403951803 | I154: -0.01152134224 | J154: -0.0002089287662 | K154: 4.290284443e-05 | L154: -0.004185723141 | M154: -0.004239901328 | N154: 21.89547779 | O154: -84.6855056
E155: 1.54 | F155: 0.773 | G155: -0.01849942929 | H155: 0.0136479402 | I155: -0.01190973314 | J155: -0.0001481660279 | K155: -7.434502837e-05 | L155: -0.004187505342 | M155: -0.004124882393 | N155: -30.78613355 | O155: -82.38035419
E156: 1.55 | F156: 0.771 | G156: 0.009564730204 | H156: 0.01324979908 | I156: -0.01201807211 | J156: -9.140230645e-05 | K156: -0.0001934727924 | L156: -0.004188694479 | M156: -0.004007012245 | N156: -84.41962817 | O156: -80.02101454
E157: 1.56 | F157: 0.768 | G157: 0.03737474426 | H157: 0.01285350621 | I157: -0.01184555927 | J157: -3.835569355e-05 | K157: -0.0003123093313 | L157: -0.004189333556 | M157: -0.003888817905 | N157: -137.8857176 | O157: -77.65804005
E158: 1.57 | F158: 0.765 | G158: 0.06448112488 | H158: 0.01246555683 | I158: -0.0113978752 | J158: 1.133540324e-05 | K158: -0.0004286202614 | L158: -0.004189463901 | M158: -0.003772271802 | N158: -190.3178365 | O158: -75.33082325
E159: 1.58 | F159: 0.763 | G159: 0.09011996255 | H159: 0.01209690234 | I159: -0.01068651215 | J159: 5.752984894e-05 | K159: -0.000539207362 | L159: -0.004189115872 | M159: -0.003660688497 | N159: -240.2402669 | O159: -73.10554883
E160: 1.59 | F160: 0.76 | G160: 0.1136830733 | H160: 0.01175627657 | I160: -0.009729460805 | J160: 0.0001004511541 | K160: -0.0006414583836 | L160: -0.004188322923 | M160: -0.003556743772 | N160: -286.467912 | O160: -71.03555659
E161: 1.6 | F161: 0.757 | G161: 0.1346277177 | H161: 0.0114514722 | I161: -0.008550443881 | J161: 0.0001404611817 | K161: -0.000733016886 | L161: -0.004187115782 | M161: -0.003462850414 | N161: -327.9342106 | O161: -69.168867
E162: 1.61 | F162: 0.754 | G162: 0.1524780796 | H162: 0.01118932359 | I162: -0.007178313313 | J162: 0.0001779542933 | K162: -0.0008117988669 | L162: -0.004185521577 | M162: -0.003381149017 | N162: -363.6946617 | O162: -67.54800428
E163: 1.62 | F163: 0.752 | G163: 0.166834387 | H163: 0.01097557697 | I163: -0.005646331759 | J163: 0.0002133335505 | K163: -0.000876034142 | L163: -0.004183563392 | M163: -0.003313466473 | N163: -392.9451247 | O163: -66.20917369
E164: 1.63 | F164: 0.749 | G164: 0.1773813723 | H164: 0.01081476106 | I164: -0.003991239732 | J164: 0.0002471186804 | K164: -0.0009243044961 | L164: -0.004181259964 | M164: -0.003261276896 | N164: -415.0391062 | O164: -65.18148814
E165: 1.64 | F165: 0.746 | G165: 0.1838947959 | H165: 0.01071009209 | I165: -0.002252402168 | J165: 0.0002799024882 | K165: -0.0009555732502 | L165: -0.004178624202 | M165: -0.003225669759 | N165: -429.5012269 | O165: -64.48633973
E166: 1.65 | F166: 0.743 | G166: 0.186246198 | H166: 0.01066341237 | I166: -0.0004709487886 | J166: 0.000312257633 | K166: -0.0009692073168 | L166: -0.004175663272 | M166: -0.003207326967 | N166: -436.0373349 | O166: -64.13695089
E167: 1.66 | F167: 0.741 | G167: 0.1844053787 | H167: 0.01067515642 | I167: 0.001311189726 | J167: 0.0003447125171 | K167: -0.0009649898058 | L167: -0.004172378738 | M167: -0.003206509435 | N167: -434.5403887 | O167: -64.13811561
E168: 1.67 | F168: 0.739 | G168: 0.1784405664 | H168: 0.01074434549 | I168: 0.003052332996 | J168: 0.000377802121 | K168: -0.0009431229789 | L168: -0.004168767019 | M168: -0.003223053578 | N168: -425.0920226 | O168: -64.48613937
E169: 1.68 | F169: 0.737 | G169: 0.1685160911 | H169: 0.0108686168 | I169: 0.00471205977 | J169: 0.000412088934 | K169: -0.0009042204586 | L169: -0.004164818955 | M169: -0.003256377697 | N169: -407.959265 | O169: -65.16897665
E170: 1.69 | F170: 0.735 | G170: 0.1548879507 | H170: 0.01104429012 | I170: 0.006252101904 | J170: 0.0004481044184 | K170: -0.0008492902618 | L170: -0.004160519917 | M170: -0.003305498098 | N170: -383.5871024 | O170: -66.166563
E171: 1.7 | F171: 0.734 | G171: 0.1378973597 | H171: 0.011266465 | I171: 0.007637172969 | J171: 0.0004862813636 | K171: -0.0007797091373 | L171: -0.004155850384 | M171: -0.003369054445 | N171: -352.5871125 | O171: -67.45133103
E172: 1.71 | F172: 0.733 | G172: 0.1179623813 | H172: 0.01152913823 | I172: 0.008835842052 | J172: 0.0005270068282 | K172: -0.000697188863 | L172: -0.004150786947 | M172: -0.003445343664 | N172: -315.7224826 | O172: -68.98889685
E173: 1.72 | F173: 0.731 | G173: 0.09556765392 | H173: 0.0118253431 | I173: 0.00982133948 | J173: 0.0005707014202 | K173: -0.0006037343145 | L173: -0.004145302264 | M173: -0.003532361186 | N173: -273.8892802 | O173: -70.73889226
E174: 1.73 | F174: 0.73 | G174: 0.07125323764 | H174: 0.01214732091 | I174: 0.01057200283 | J174: 0.0006176447207 | K174: -0.0005015973556 | L174: -0.004139365547 | M174: -0.003627847276 | N174: -228.0956327 | O174: -72.6558976
E175: 1.74 | F175: 0.729 | G175: 0.04560446104 | H175: 0.01248667183 | I175: 0.01107181901 | J175: 0.0006679898117 | K175: -0.0003932370461 | L175: -0.004132945349 | M175: -0.003729331082 | N175: -179.4429722 | O175: -74.69032821
E176: 1.75 | F176: 0.727 | G176: 0.01925854509 | H176: 0.01283427659 | I176: 0.01131105996 | J176: 0.0007218327364 | K176: -0.0002813746411 | L176: -0.004126017811 | M176: -0.003834106864 | N176: -129.139589 | O176: -76.78796432
E177: 1.76 | F177: 0.726 | G177: -0.007035745788 | H177: 0.01317953732 | I177: 0.01128612513 | J177: 0.0007789531108 | K177: -0.0001691228999 | L177: -0.004118579506 | M177: -0.003939000891 | N177: -78.61509383 | O177: -78.88529211
E178: 1.77 | F178: 0.725 | G178: -0.03297183658 | H178: 0.01351766433 | I178: 0.0109993928 | J178: 0.0008399488826 | K178: -5.774992183e-05 | L178: -0.004110504318 | M178: -0.004042582996 | N178: -28.45693289 | O178: -80.95371973
E179: 1.78 | F179: 0.723 | G179: -0.05785909454 | H179: 0.0138388426 | I179: 0.01045880735 | J179: 0.0009044954229 | K179: 4.967676722e-05 | L179: -0.004101788544 | M179: -0.004141879279 | N179: 20.00327384 | O179: -82.93384609
E180: 1.79 | F180: 0.722 | G180: -0.08107562068 | H180: 0.01413419267 | I180: 0.009678253167 | J180: 0.0009722822623 | K180: 0.0001505230808 | L180: -0.004092408423 | M180: -0.004234179985 | N180: 65.55874969 | O180: -84.77161193
E181: 1.8 | F181: 0.72 | G181: -0.1020820571 | H181: 0.01439597508 | I181: 0.008677419549 | J181: 0.001043006225 | K181: 0.0002424577225 | L181: -0.004082334774 | M181: -0.004317101029 | N181: 107.1541115 | O181: -86.41952992
E182: 1.81 | F182: 0.718 | G182: -0.1203991003 | H182: 0.01461730469 | I182: 0.007481125163 | J182: 0.001116334165 | K182: 0.0003233907334 | L182: -0.0040715402 | M182: -0.00438849937 | N182: 143.8429209 | O182: -87.83498593
E183: 1.82 | F183: 0.716 | G183: -0.1356144697 | H183: 0.01479226207 | I183: 0.006118586698 | J183: 0.001191826733 | K183: 0.0003915073518 | L183: -0.004060000986 | M183: -0.004446506842 | N183: 174.8018453 | O183: -88.98090898
E184: 1.83 | F184: 0.713 | G184: -0.1473914224 | H184: 0.01491600962 | I184: 0.004622795362 | J184: 0.001269047021 | K184: 0.0004453059488 | L184: -0.004047697804 | M184: -0.004489569136 | N184: 199.3476843 | O184: -89.82654378
E185: 1.84 | F185: 0.711 | G185: -0.1554759428 | H185: 0.0149849028 | I185: 0.003029597428 | J185: 0.001347451241 | K185: 0.0004836306441 | L185: -0.004034615941 | M185: -0.004516479361 | N185: 216.9522068 | O185: -90.3481138
E186: 1.85 | F186: 0.707 | G186: -0.15970204 | H186: 0.01499655848 | I186: 0.001376976102 | J186: 0.00142654149 | K186: 0.000505695374 | L186: -0.004020746331 | M186: -0.004526403958 | N186: 227.2531257 | O186: -90.52933101
E187: 1.86 | F187: 0.703 | G187: -0.1599953214 | H187: 0.01494990557 | I187: -0.0002959019453 | J187: 0.00150582802 | K187: 0.0005111011521 | L187: -0.004006084413 | M187: -0.004518899753 | N187: 230.062079 | O187: -90.36172774
E188: 1.87 | F188: 0.699 | G188: -0.1563739102 | H188: 0.01484520933 | I188: -0.001949724597 | J188: 0.001584727846 | K188: 0.000499842127 | L188: -0.003990631183 | M188: -0.004493921971 | N188: 225.3675824 | O188: -89.8448076
E189: 1.88 | F189: 0.694 | G189: -0.1489475006 | H189: 0.0146840479 | I189: -0.003545811422 | J189: 0.001662722836 | K189: 0.000472303209 | L189: -0.003974393251 | M189: -0.004451822863 | N189: 213.3341367 | O189: -88.98600874
E190: 1.89 | F190: 0.69 | G190: -0.1379142369 | H190: 0.01446927493 | I190: -0.005047134721 | J190: 0.001739252795 | K190: 0.0004292489576 | L190: -0.003957382391 | M190: -0.004393341057 | N190: 194.2974552 | O190: -87.80048158
E191: 1.9 | F191: 0.685 | G191: -0.1235554231 | H191: 0.01420494027 | I191: -0.006419092071 | J191: 0.001813812407 | K191: 0.0003718026924 | L191: -0.003939616112 | M191: -0.00431958209 | N191: 168.7552318 | O191: -86.31069081
E192: 1.91 | F192: 0.681 | G192: -0.1062285904 | H192: 0.01389619101 | I192: -0.00763034205 | J192: 0.001885923155 | K192: 0.0003014188081 | L192: -0.003921116586 | M192: -0.004231990463 | N192: 137.3548678 | O192: -84.54584828
E193: 1.92 | F193: 0.677 | G193: -0.08635858194 | H193: 0.01354914752 | I193: -0.008653535693 | J193: 0.001955127729 | K193: 0.0002198464178 | L193: -0.003901911139 | M193: -0.004132314426 | N193: 100.8772489 | O193: -82.54120136
E194: 1.93 | F194: 0.674 | G194: -0.06442754501 | H194: 0.01317075798 | I194: -0.009465913429 | J194: 0.002021023934 | K194: 0.0001290882017 | L194: -0.003882031741 | M194: -0.004022564771 | N194: 60.21829329 | O194: -80.33720242
E195: 1.94 | F195: 0.671 | G195: -0.04096438134 | H195: 0.01276864986 | I195: -0.01004980951 | J195: 0.002083288561 | K195: 3.1357362e-05 | L195: -0.00386151591 | M195: -0.003904972243 | N195: 16.36932958 | O195: -77.9786516
E196: =E195+$B$3 -> 1.95 | F196: 0.669 | G196: -0.0165385741 | H196: 0.01235106025 | I196: -0.01039312662 | J196: 0.00214164804 | K196: -7.094147649e-05 | L196: -0.00384041289 | M196: -0.003781967335 | N196: -29.59426036 | O196: -75.51428832
E197: 1.96 | F197: 0.666 | G197: 0.008186579368 | H197: 0.01192778727 | I197: -0.01048971114 | J197: 0.002195788566 | K197: -0.0001749361811 | L197: -0.003818853694 | M197: -0.003656464834 | N197: -76.41180736 | O197: -73.00247863
E198: 1.97 | F198: 0.664 | G198: 0.03269116533 | H198: 0.01150613747 | I198: -0.01033882117 | J198: 0.002245944256 | K198: -0.0002786761679 | L198: -0.003796767567 | M198: -0.00353065941 | N198: -123.0882881 | O198: -70.48712798
E199: 1.98 | F199: 0.661 | G199: 0.05657361359 | H199: 0.01109142802 | I199: -0.00994548464 | J199: 0.002292418642 | K199: -0.0003801812217 | L199: -0.00377409503 | M199: -0.003406166971 | N199: -168.8466522 | O199: -68.00050511
E200: 1.99 | F200: 0.659 | G200: 0.07916579441 | H200: 0.01069359376 | I200: -0.009319785085 | J200: 0.002335114578 | K200: -0.0004766533972 | L200: -0.003750961605 | M200: -0.003285994122 | N200: -212.3983196 | O200: -65.60264832
... 2801 more rows

Sheet 固有値解析
A1: 質量 | B1: m1 | C1: =応答計算!B4 -> 2000 | D1: ton | E1: モーダルマトリックスF | J1: モード図 | L1: 1次 | N1: 2次
B2: m2 | C2: =応答計算!B5 -> 6000 | D2: ton | E2: fai11 | F2: fai12 | G2: 1 | H2: 1 | K2: 0 | L2: 0 | M2: 0 | N2: 0
A3: 剛性 | B3: k1 | C3: =応答計算!B8 -> 450000 | D3: kN/m | E3: fai21 | F3: fai22 | G3: =(C3+C4-C1*C12)/C4 -> 23.18104623 | H3: =(C3+C4-C1*C13)/C4 -> -0.0143795638 | K3: =G2 -> 1 | L3: 1 | M3: =H2 -> 1 | N3: 1
B4: k2 | C4: =応答計算!B9 -> 20000 | D4: kN/m | K4: =G3 -> 23.18104623 | L4: 2 | M4: =H3 -> -0.0143795638 | N4: 2
A5: 減衰定数 | B5: h1 | C5: =応答計算!B6 -> 0.02 | E5: h11の係数 | F5: =C3*G2^2 -> 450000 | G5: モーダルマトリックスの転置行列Ft
A6: （部材毎） | B6: h2 | C6: =応答計算!B7 -> 0.02 | E6: h21の係数 | F6: =C4*(G3-G2)^2 -> 9839976.238 | G6: =G2 -> 1 | H6: =G3 -> 23.18104623
E7: h12の係数 | F7: =C3*H2^2 -> 450000 | G7: =H2 -> 1 | H7: =H3 -> -0.0143795638
A8: a | B8: m1m2 | C8: =C1*C2 -> 12000000 | E8: h22の係数 | F8: =C4*(H3-H2)^2 -> 20579.31799 | G8: モーダルマトリックスの転置行列の逆行列F-t
A9: b | B9: m1k2+m2k1+m2k2 | C9: =C1*C4+C2*C3+C2*C4 -> 2860000000 | E9: 歪みエネルギー比例減衰 | G9: =MINVERSE(G6:H7) -> 0.0006199310128 | H9: 0.999380069
A10: c | B10: k1k2 | C10: =C3*C4 -> 9000000000 | E10: 1次の減衰定数 | F10: =(C5*F5+C6*F6)/(F5+F6) -> 0.02 | G10: 0.0431119484 | H10: -0.0431119484
E11: 2次の減衰定数 | F11: =(C5*F7+C6*F8)/(F7+F8) -> 0.02 | G11: 質量行列M
A12: axx-bx+c=0 | B12: w1^2 | C12: =(C9-SQRT(C9*C9-4*C8*C10))/2/C8 -> 3.189537695 | G12: =C1 -> 2000 | H12: 0
B13: w2^2 | C13: =(C9+SQRT(C9*C9-4*C8*C10))/2/C8 -> 235.1437956 | E13: 剛性行列 | G13: 0 | H13: =C2 -> 6000
E14: =C3+C4 -> 470000 | F14: =-C4 -> -20000 | G14: Ft*M
A15: 円振動数 | B15: w1 | C15: =SQRT(C12) -> 1.785927685 | E15: =-C4 -> -20000 | F15: =C4 -> 20000 | G15: =MMULT(G6:H7,G12:H13) -> 2000 | H15: 139086.2774
A16: rad/s | B16: w2 | C16: =SQRT(C13) -> 15.3343991 | G16: 2000 | H16: -86.27738283
G17: 換算質量行列Ms
A18: 固有振動数 | B18: f1 | C18: =C15/2/PI() -> 0.284239219 | G18: =MMULT(G15:H16,G2:H3) -> 3226165.426 | H18: 2.492015483e-10
A19: Hz | B19: f2 | C19: =C16/2/PI() -> 2.440545415 | G19: 2.487468009e-10 | H19: 2001.240631
G20: 換算減衰行列Cs
A21: 固有周期 | B21: T1 | C21: =1/C18 -> 3.518163339 | G21: =2*F10*C15*G18 -> 230467.926 | H21: 0
A22: s | B22: T2 | C22: =1/C19 -> 0.409744475 | G22: 0 | H22: =2*F11*C16*H19 -> 1227.512901
G23: F-t*Cs
A24: 減衰 | B24: この秒以上 | C24: この振動数以上 | G24: =MMULT(G9:H10,G21:H22) -> 142.8742148 | H24: 1226.751928
A25: 0.1 | B25: =$F$31/(A25-SQRT(A25*A25-$F$30*$F$31)) -> 19.56586238 | C25: =(A25+SQRT(A25*A25-$F$30*$F$31))/$F$31 -> 13.57281375 | E25: 減衰行列 | F25: F-t*Cs*F-1 | G25: 9935.921334 | H25: -52.92047285
A26: 0.2 | B26: =$F$31/(A26-SQRT(A26*A26-$F$30*$F$31)) -> 39.24234364 | C26: =(A26+SQRT(A26*A26-$F$30*$F$31))/$F$31 -> 27.22236367 | E26: =MMULT(G24:H25,G27:H28) -> 1226.079998 | F26: -46.72808003 | G26: モーダルマトリックスの逆行列F-1
A27: 0.3 | B27: 58.89414028 | C27: 40.8547899 | E27: -46.72808003 | F27: 430.6384326 | G27: =MINVERSE(G2:H3) -> 0.0006199310128 | H27: 0.0431119484
A28: 0.4 | B28: 78.53980192 | C28: 54.48296029 | G28: 0.999380069 | H28: -0.0431119484
A29: 0.5 | B29: 98.1830131 | C29: 68.1094308 | E29: レイリー減衰の係数
A30: 0.6 | B30: 117.8249998 | C30: 81.73505187 | E30: α | F30: =2*C18*C19*(C18*F11-C19*F10)/(C18*C18-C19*C19) -> 0.01018353839
A31: 0.7 | B31: 137.4662869 | C31: 95.3601877 | E31: β | F31: =2*(C18*F10-C19*F11)/(C18*C18-C19*C19) -> 0.01468005929
A32: 0.8 | B32: 157.107137 | C32: 108.9850203
A33: 0.9 | B33: 176.7476957 | C33: 122.6096508
A34: 1 | B34: =$F$31/(A34-SQRT(A34*A34-$F$30*$F$31)) -> 196.3880504 | C34: 136.2341398
A36: f | B36: h
A37: 0.1 | B37: =$F$30/2/A37+$F$31*A37/2 -> 0.05165169489
A38: =A37+0.1 -> 0.2 | B38: =$F$30/2/A38+$F$31*A38/2 -> 0.02692685189
A39: =A38+0.1 -> 0.3 | B39: 0.01917457287
A40: 0.4 | B40: 0.01566543484
A41: 0.5 | B41: 0.01385355321
A42: 0.6 | B42: 0.01289029978
A43: 0.7 | B43: 0.01241197674
A44: 0.8 | B44: 0.01223673521
A45: 0.9 | B45: 0.01226354801
A46: 1 | B46: 0.01243179884
A47: 1.1 | B47: 0.0127029137
A48: 1.2 | B48: 0.01305117657
A49: 1.3 | B49: 0.01345878407
A50: 1.4 | B50: 0.0139130195
A51: 1.5 | B51: 0.01440455727
A52: 1.6 | B52: 0.01492640318
A53: 1.7 | B53: 0.01547320875
A54: 1.8 | B54: 0.01604081403
A55: 1.9 | B55: 0.01662593485
A56: 2 | B56: 0.01722594389
A57: 2.1 | B57: 0.01783871426
A58: 2.2 | B58: 0.01846250577
A59: 2.3 | B59: 0.01909588088
A60: 2.4 | B60: 0.01973764165
A61: 2.5 | B61: 0.0203867818
A62: 2.6 | B62: 0.02104244985
A63: 2.7 | B63: 0.02170392049
A64: 2.8 | B64: 0.02237057201
A65: 2.9 | B65: 0.02304186846
A66: 3 | B66: 0.02371734534
A67: 3.1 | B67: 0.0243965981
A68: 3.2 | B68: 0.02507927274
A69: 3.3 | B69: 0.0257650582
A70: 3.4 | B70: 0.02645367998
A71: 3.5 | B71: 0.02714489496
A72: 3.6 | B72: 0.02783848706
A73: 3.7 | B73: 0.02853426353
A74: 3.8 | B74: 0.02923205192
A75: 3.9 | B75: 0.02993169747
A76: 4 | B76: 0.03063306089
A77: 4.1 | B77: 0.03133601648
A78: 4.2 | B78: 0.03204045052
A79: 4.3 | B79: 0.03274625985
A80: 4.4 | B80: 0.03345335072
A81: 4.5 | B81: 0.03416163768
A82: 4.6 | B82: 0.03487104272
A83: 4.7 | B83: 0.03558149449
A84: 4.8 | B84: 0.03629292756
A85: 4.9 | B85: 0.03700528184
A86: 5 | B86: 0.03771850208
A87: 5.1 | B87: 0.03843253732
A88: 5.2 | B88: 0.03914734055
A89: 5.3 | B89: 0.0398628683
A90: 5.4 | B90: 0.04057908032
A91: 5.5 | B91: 0.04129593928
A92: 5.6 | B92: 0.04201341052
A93: 5.7 | B93: 0.04273146183
A94: 5.8 | B94: 0.04345006319
A95: 5.9 | B95: 0.04416918665
A96: 6 | B96: 0.04488880608
A97: 6.1 | B97: 0.04560889711
A98: 6.2 | B98: 0.04632943691
A99: 6.3 | B99: 0.04705040411
A100: 6.4 | B100: 0.04777177868
A101: 6.5 | B101: 0.04849354181
A102: 6.6 | B102: =$F$30/2/A102+$F$31*A102/2 -> 0.04921567585
A103: =A102+0.1 -> 6.7 | B103: 0.04993816419
A104: =A103+0.1 -> 6.8 | B104: 0.05066099119
A105: =A104+0.1 -> 6.9 | B105: 0.05138414213
A106: 7 | B106: 0.05210760313
A107: 7.1 | B107: 0.05283136109
A108: 7.2 | B108: 0.05355540363
A109: 7.3 | B109: 0.05427971905
A110: 7.4 | B110: 0.05500429631
A111: 7.5 | B111: 0.05572912491
A112: 7.6 | B112: 0.05645419495
A113: 7.7 | B113: 0.05717949701
A114: 7.8 | B114: 0.05790502217
A115: 7.9 | B115: 0.05863076196
A116: 8 | B116: 0.05935670833
A117: 8.1 | B117: 0.06008285362
A118: 8.2 | B118: 0.06080919057
A119: 8.3 | B119: 0.06153571224
A120: 8.4 | B120: 0.06226241204
A121: 8.5 | B121: 0.06298928367
A122: 8.6 | B122: 0.06371632115
A123: 8.7 | B123: 0.06444351876
A124: 8.8 | B124: 0.06517087103
A125: 8.9 | B125: 0.06589837276
A126: 9 | B126: 0.06662601896
A127: 9.1 | B127: 0.06735380487
A128: 9.2 | B128: 0.06808172593
A129: 9.3 | B129: 0.06880977778
A130: 9.4 | B130: 0.06953795626
A131: 9.5 | B131: 0.07026625735
A132: 9.6 | B132: 0.07099467724
A133: 9.7 | B133: 0.07172321224
A134: 9.8 | B134: 0.07245185883
A135: 9.9 | B135: 0.07318061363
A136: 10 | B136: 0.07390947339
A137: 10.1 | B137: 0.074638435
A138: 10.2 | B138: 0.07536749546
A139: 10.3 | B139: 0.07609665189
A140: 10.4 | B140: 0.07682590152
A141: 10.5 | B141: 0.0775552417
A142: 10.6 | B142: 0.07828466985
A143: 10.7 | B143: 0.07901418351
A144: 10.8 | B144: 0.0797437803
A145: 10.9 | B145: 0.08047345794
A146: 11 | B146: 0.08120321423
A147: 11.1 | B147: 0.08193304703
A148: 11.2 | B148: 0.0826629543
A149: 11.3 | B149: 0.08339293406
A150: 11.4 | B150: 0.0841229844
A151: 11.5 | B151: 0.08485310348
A152: 11.6 | B152: 0.08558328953
A153: 11.7 | B153: 0.08631354082
A154: 11.8 | B154: 0.0870438557
A155: 11.9 | B155: 0.08777423257
A156: 12 | B156: 0.08850466987
A157: 12.1 | B157: 0.0892351661
A158: 12.2 | B158: 0.08996571983
A159: 12.3 | B159: 0.09069632964
A160: 12.4 | B160: 0.09142699417
A161: 12.5 | B161: 0.09215771213
A162: 12.6 | B162: 0.09288848222
A163: 12.7 | B163: 0.09361930323
A164: 12.8 | B164: 0.09435017395
A165: 12.9 | B165: 0.09508109324
A166: 13 | B166: =$F$30/2/A166+$F$31*A166/2 -> 0.09581205997
A167: 13.1 | B167: 0.09654307305
A168: 13.2 | B168: 0.09727413144
A169: =A168+0.1 -> 13.3 | B169: 0.0980052341
A170: 13.4 | B170: 0.09873638005
A171: 13.5 | B171: 0.09946756833
A172: 13.6 | B172: 0.100198798
A173: 13.7 | B173: 0.1009300682
A174: 13.8 | B174: 0.1016613779
A175: 13.9 | B175: 0.1023927264
A176: 14 | B176: 0.1031241129
A177: 14.1 | B177: 0.1038555364
A178: 14.2 | B178: 0.1045869963
A179: 14.3 | B179: 0.1053184917
A180: 14.4 | B180: 0.106050022
A181: 14.5 | B181: 0.1067815864
A182: 14.6 | B182: 0.1075131842
A183: 14.7 | B183: 0.1082448147
A184: 14.8 | B184: 0.1089764772
A185: 14.9 | B185: 0.1097081712
A186: 15 | B186: 0.110439896
A187: 15.1 | B187: 0.1111716509
A188: 15.2 | B188: 0.1119034355
A189: 15.3 | B189: 0.112635249
A190: 15.4 | B190: 0.1133670909
A191: 15.5 | B191: 0.1140989608
A192: 15.6 | B192: 0.114830858
A193: 15.7 | B193: 0.115562782
A194: 15.8 | B194: 0.1162947323
A195: 15.9 | B195: 0.1170267084
A196: 16 | B196: 0.1177587099
A197: 16.1 | B197: 0.1184907363
A198: 16.2 | B198: 0.119222787
A199: 16.3 | B199: 0.1199548617
A200: 16.4 | B200: 0.1206869599
A201: 16.5 | B201: 0.1214190813
... 35 more rows
